bitfinex-derivatives/quotes_ETHF0:USTF0_20260123
["timestamp","ask_amount","ask_price","bid_price","bid_amount"]
[1769188334393,6.57409723,2969.0,2967.3,0.14804735]
[1769188334590,1.30293725,2968.9,2967.3,0.14804735]
[1769188334795,1.30293725,2968.8,2967.3,0.31675735]
[1769188335001,1.30293725,2968.7,2967.3,0.31675735]
[1769188335301,6.57409723,2969.0,2967.3,0.31675735]
[1769188335495,1.30343649,2968.9,2967.3,0.31675735]
[1769188335696,1.30343649,2968.8,2967.3,0.31675735]
[1769188335895,1.30343649,2968.7,2967.3,0.31675735]
[1769188336107,6.57409723,2969.0,2967.3,0.31675735]
[1769188336399,1.3034366,2968.9,2967.3,0.31675735]
[1769188336602,1.3034366,2968.8,2967.3,0.31675735]
[1769188336801,1.3034366,2968.7,2967.4,0.1687]
[1769188337002,0.15109723,2969.5,2967.5,0.14804735]
[1769188337202,1.29998162,2969.4,2967.5,0.14804735]
[1769188337507,1.29998162,2969.3,2967.8,0.14804735]
[1769188337702,1.29998162,2969.2,2967.8,0.14804735]
[1769188337903,0.15109723,2969.5,2967.8,0.14804735]
[1769188338107,1.29976879,2969.4,2967.9,0.14804735]
[1769188338411,0.00236577,2969.7,2968.1,0.31670735]
[1769188338704,1.29937152,2969.6,2968.1,0.31670735]
[1769188338897,0.00236577,2969.7,2968.1,0.31670735]
[1769188339099,1.29936782,2969.6,2968.1,0.31670735]
[1769188339297,0.00236577,2969.7,2968.1,0.31670735]
[1769188339600,0.00236577,2969.7,2968.4,0.14804735]
[1769188340302,0.00236577,2969.7,2968.6,0.16863]
[1769188340607,0.00236577,2969.7,2968.7,0.14804735]
[1769188341204,2.02509723,2970.6,2968.7,0.14804735]
[1769188341501,1.29702184,2970.5,2968.9,0.14804735]
[1769188341703,1.29702184,2970.4,2969.1,0.14804735]
[1769188341907,0.16848,2971.3,2969.4,0.14804735]
[1769188342109,0.93171443,2971.2,2969.6,0.14804735]
[1769188342309,0.00338278,2971.3,2969.6,0.14804735]
[1769188342511,0.15109723,2971.1,2969.4,0.00257764]
[1769188342702,0.15109723,2970.7,2969.4,0.00257764]
[1769188343009,0.93025612,2970.6,2969.4,0.00257764]
[1769188343204,0.15109723,2970.7,2969.4,0.00257764]
[1769188344203,0.15109723,2971.2,2969.4,0.00257764]
[1769188344402,0.92895475,2971.1,2969.4,0.00257764]
[1769188344604,0.15109723,2970.8,2969.4,0.00257764]
[1769188344804,1.08011996,2970.7,2969.4,0.00257764]
[1769188345015,0.15109723,2970.7,2969.4,0.00257764]
[1769188346607,1.874,2971.2,2969.4,0.15062499]
[1769188346608,0.15109723,2971.2,2969.4,0.15062499]
[1769188347010,0.16848,2971.4,2969.5,0.31662735]
[1769188347217,0.92814168,2971.2,2969.6,0.14804735]
[1769188347408,0.16848,2971.4,2969.6,0.14804735]
[1769188349315,0.15109723,2971.2,2969.4,0.00257764]
[1769188349515,0.15109723,2971.0,2969.4,0.00257764]
[1769188350607,0.15109723,2970.9,2969.4,0.00257764]
[1769188351314,0.1685,2971.0,2969.4,0.15062499]
[1769188351817,0.31959723,2971.0,2969.4,0.15062499]
[1769188352317,0.31959723,2971.0,2969.4,0.00257764]
[1769188353022,0.92686447,2970.9,2969.4,0.00257764]
[1769188353317,0.92686447,2970.8,2969.4,0.14978171]
[1769188353515,0.1685,2971.0,2969.4,0.14978171]
[1769188353711,0.92689072,2970.9,2969.5,0.14720407]
[1769188353918,0.00338278,2971.3,2969.5,0.14720407]
[1769188354119,1.2812953,2971.2,2969.5,0.14720407]
[1769188354421,0.92687151,2971.1,2969.6,0.14720407]
[1769188354616,0.00338278,2971.3,2969.6,0.14720407]
[1769188354821,1.09540533,2971.2,2969.6,0.14720407]
[1769188355017,0.92691533,2971.1,2969.6,0.14720407]
[1769188355218,0.16849,2971.2,2969.6,0.14720407]
[1769188355418,0.92699954,2971.1,2969.6,0.14720407]
[1769188355613,0.92699954,2971.0,2969.6,0.14720407]
[1769188355821,0.16849,2971.2,2969.6,0.14720407]
[1769188356021,0.92700099,2971.1,2969.6,0.14720407]
[1769188356219,0.16849,2971.2,2969.6,0.14720407]
[1769188356517,1.0956668,2971.1,2969.4,0.00257764]
[1769188356719,0.31575506,2970.9,2969.4,0.00257764]
[1769188356920,1.07441186,2970.8,2969.4,0.00257764]
[1769188357221,0.9271668,2970.7,2969.4,0.00257764]
[1769188358822,1.07441186,2970.7,2969.4,0.00257764]
[1769188359023,0.9271668,2970.6,2969.4,0.00257764]
[1769188359427,1.0956968,2970.6,2969.4,0.00257764]
[1769188359621,1.0956968,2970.5,2969.4,0.00257764]
[1769188359826,0.9271668,2970.4,2969.4,0.00257764]
[1769188360623,1.07441186,2970.4,2968.7,3.68783407]
[1769188360824,0.9271668,2970.3,2968.8,0.14720407]
[1769188361016,0.9271668,2970.2,2968.8,0.14720407]
[1769188361213,0.14724506,2970.4,2968.8,0.14720407]
[1769188361421,0.92831329,2970.3,2968.8,0.14720407]
[1769188361614,1.07555835,2970.2,2968.8,0.00306204]
[1769188361823,0.92831329,2970.1,2968.8,0.00306204]
[1769188362419,0.92831329,2970.1,2968.8,0.15026611]
[1769188362625,0.14724506,2971.1,2969.1,0.14720407]
[1769188362820,1.28416185,2971.0,2969.1,0.14720407]
[1769188363127,1.28416185,2970.9,2969.1,0.14720407]
[1769188363328,0.92876079,2970.8,2969.1,0.14720407]
[1769188363522,1.873,2971.1,2969.5,0.14720407]
[1769188363720,0.92924008,2971.0,2969.5,0.14720407]
[1769188363914,1.873,2971.1,2969.5,0.14720407]
[1769188364120,0.92923153,2971.0,2969.5,0.14720407]
[1769188364419,1.873,2971.1,2969.5,0.14720407]
[1769188364626,0.92980682,2971.0,2969.5,0.14720407]
[1769188364816,1.873,2971.1,2969.5,0.14720407]
[1769188365019,0.92980665,2971.0,2969.5,0.14720407]
[1769188365217,0.93049237,2970.9,2969.5,0.14720407]
[1769188365426,0.17186278,2971.3,2969.5,0.14720407]
[1769188365628,1.28656529,2971.2,2969.5,0.14720407]
[1769188365827,0.93049232,2971.1,2969.5,0.14720407]
[1769188366025,0.93049232,2971.0,2969.5,0.14720407]
[1769188366326,0.93049232,2970.9,2969.5,0.14720407]
[1769188366521,0.17186278,2971.3,2969.6,0.14720407]
[1769188366722,0.93136572,2971.2,2969.6,0.14720407]
[1769188367027,0.93136572,2971.1,2969.6,0.14720407]
[1769188367233,0.9319833,2971.0,2969.6,0.14720407]
[1769188367421,0.00338278,2971.3,2969.6,0.14720407]
[1769188367623,0.93197997,2971.2,2969.6,0.14720407]
[1769188367824,0.93197997,2971.1,2969.6,0.14720407]
[1769188368027,0.00338278,2971.3,2969.6,0.14720407]
[1769188368329,1.28883907,2971.2,2969.6,0.14720407]
[1769188368523,0.9319792,2971.1,2969.6,0.14720407]
[1769188368726,0.9319792,2971.0,2969.6,0.14720407]
[1769188368926,0.00338278,2971.3,2969.6,0.14720407]
[1769188369126,1.28934891,2971.2,2969.6,0.14720407]
[1769188369429,0.93248893,2971.1,2969.6,0.14720407]
[1769188369629,0.93248893,2971.0,2969.6,0.14720407]
[1769188369832,0.93248893,2970.9,2969.6,0.14720407]
[1769188370025,0.00338278,2971.3,2969.6,0.14720407]
[1769188370332,1.28988405,2971.2,2969.6,0.14720407]
[1769188370529,1.28988405,2971.1,2969.6,0.14720407]
[1769188370834,0.93286586,2971.0,2969.6,0.14720407]
[1769188371130,0.93286586,2970.9,2969.6,0.14720407]
[1769188371331,0.00338278,2971.3,2969.6,0.14720407]
[1769188371530,1.29044516,2971.2,2969.6,0.14720407]
[1769188371733,1.29044516,2971.1,2969.6,0.14720407]
[1769188371932,0.93328206,2971.0,2969.6,0.14720407]
[1769188372132,1.29044785,2970.9,2969.1,0.14720407]
[1769188372431,1.29044785,2970.8,2969.1,0.14720407]
[1769188372635,1.29044785,2970.7,2969.1,0.14720407]
[1769188372831,1.29044785,2970.6,2969.2,0.14720407]
[1769188373131,0.93328206,2970.5,2969.2,0.14720407]
[1769188373328,0.93328206,2970.4,2969.2,0.14720407]
[1769188373730,0.00338278,2971.3,2969.6,0.14720407]
[1769188373934,1.29066455,2971.2,2969.6,0.14720407]
[1769188374130,1.29066455,2971.1,2969.6,0.14720407]
[1769188374334,1.29066455,2971.0,2969.6,0.14720407]
[1769188374638,1.29066455,2970.9,2969.6,0.14720407]
[1769188374930,0.9334402,2970.8,2969.6,0.14720407]
[1769188375144,0.9334402,2970.7,2969.6,0.14720407]
[1769188375344,0.15062784,2971.3,2969.6,0.14720407]
[1769188375646,1.28766626,2971.2,2969.6,0.14720407]
[1769188375947,1.28766626,2971.1,2969.6,0.14720407]
[1769188376245,1.28766626,2971.0,2969.6,0.14720407]
[1769188376442,1.28766626,2970.9,2969.6,0.14720407]
[1769188376642,0.93044703,2970.8,2969.6,0.14720407]
[1769188376839,0.93044703,2970.7,2969.6,0.14720407]
[1769188377145,0.15062784,2971.3,2969.1,0.14720407]
[1769188377146,1.28769078,2970.6,2969.1,0.14720407]
[1769188377445,0.16851,2970.9,2969.2,0.14720407]
[1769188377647,0.93047608,2970.8,2969.3,0.14720407]
[1769188377847,0.93047608,2970.7,2969.3,0.14720407]
[1769188378146,0.00338278,2971.3,2969.5,0.14720407]
[1769188378343,0.93045255,2971.2,2969.6,0.14720407]
[1769188378543,0.93045255,2971.1,2969.6,0.14720407]
[1769188378743,0.93045255,2971.0,2969.6,0.14720407]
[1769188378943,0.93045255,2970.9,2969.6,0.14720407]
[1769188379245,0.93045255,2970.8,2969.6,0.14720407]
[1769188379542,0.93045255,2970.7,2969.6,0.14720407]
[1769188379747,0.00338278,2971.3,2969.6,0.14720407]
[1769188379948,1.28757807,2971.2,2969.6,0.14720407]
[1769188380150,0.93039779,2971.1,2969.6,0.14720407]
[1769188380443,0.93039779,2971.0,2969.6,0.14720407]
[1769188380649,1.28756567,2970.9,2969.7,0.14720407]
[1769188380850,0.93035738,2970.8,2969.6,0.16858]
[1769188381042,0.93036807,2970.7,2969.3,0.14720407]
[1769188381247,0.93043145,2970.6,2969.3,0.14720407]
[1769188381441,0.14724506,2971.1,2969.3,0.14720407]
[1769188381647,0.93044708,2971.0,2969.3,0.14720407]
[1769188381847,1.24619214,2970.9,2969.3,0.14720407]
[1769188382042,0.93044708,2970.8,2969.3,0.14720407]
[1769188383249,0.35716344,2970.7,2969.3,0.14720407]
[1769188383450,0.93044708,2970.6,2969.3,0.14720407]
[1769188384150,0.1685,2970.9,2969.3,0.14720407]
[1769188384350,0.93047224,2970.8,2969.3,0.14720407]
[1769188384552,0.93047224,2970.7,2969.3,0.14720407]
[1769188384751,0.93047224,2970.6,2969.3,0.14720407]
[1769188385045,0.1685,2970.9,2969.3,0.14720407]
[1769188385251,1.28761551,2970.8,2969.3,0.14720407]
[1769188385450,0.93047217,2970.7,2969.3,0.14720407]
[1769188385652,0.93047217,2970.6,2969.3,0.14720407]
[1769188385952,0.1685,2970.9,2969.3,0.14720407]
[1769188386153,1.28762683,2970.8,2969.3,0.14720407]
[1769188386349,0.93049549,2970.7,2969.3,0.14720407]
[1769188386651,0.93049549,2970.6,2969.3,0.14720407]
[1769188386854,0.1685,2970.9,2969.3,0.14720407]
[1769188387059,1.28763795,2970.8,2969.4,0.13927842]
[1769188387260,0.93051931,2970.7,2969.4,0.13927842]
[1769188387551,6.56419427,2971.3,2969.5,0.13927842]
[1769188387754,1.28752828,2971.2,2969.5,0.13927842]
[1769188388053,1.28752828,2971.1,2969.5,0.13927842]
[1769188388249,0.93043914,2971.0,2969.5,0.13927842]
[1769188388555,0.00338278,2971.3,2969.7,0.16857]
[1769188388855,1.28738753,2971.2,2969.7,0.30784842]
[1769188389053,0.93034577,2971.1,2969.7,0.30784842]
[1769188389354,0.93034577,2971.0,2969.7,0.30784842]
[1769188389556,0.14910068,2971.3,2969.7,0.16857]
[1769188389858,1.43307146,2971.2,2969.7,0.16857]
[1769188390156,1.28735356,2971.1,2969.7,0.16857]
[1769188390357,0.9303235,2971.0,2969.7,0.16857]
[1769188390546,0.1457179,2971.2,2969.7,0.16857]
[1769188390854,1.287568,2971.1,2969.3,0.13927842]
[1769188391054,0.1457179,2970.9,2968.9,0.13927842]
[1769188391257,0.1457179,2970.7,2968.9,0.13927842]
[1769188391449,1.28760931,2970.6,2968.9,0.13927842]
[1769188391651,1.28760931,2970.5,2968.9,0.13927842]
[1769188391859,0.93047013,2970.4,2968.9,0.13927842]
[1769188392159,0.16851,2970.8,2968.9,0.13927842]
[1769188392358,1.28853894,2970.7,2968.9,0.13927842]
[1769188392561,0.1457179,2970.5,2968.8,0.17168204]
[1769188392860,0.1457179,2970.5,2968.8,0.00306204]
[1769188392861,0.1457179,2970.3,2968.8,0.00306204]
[1769188393047,1.28853894,2970.2,2968.8,0.00306204]
[1769188393356,1.28853894,2970.1,2968.8,0.00306204]
[1769188393553,0.93129104,2970.0,2968.8,0.00306204]
[1769188393752,0.1457179,2970.3,2968.8,0.00306204]
[1769188394055,1.28847916,2970.2,2968.8,0.00306204]
[1769188394256,1.28847916,2970.1,2968.8,0.00306204]
[1769188394457,1.28847916,2970.0,2968.8,0.00306204]
[1769188394657,0.1457179,2970.3,2968.8,0.00306204]
[1769188394658,0.35735549,2969.9,2968.8,0.00306204]
[1769188394860,0.1457179,2970.3,2968.8,0.00306204]
[1769188395161,1.28796812,2970.2,2968.8,0.00306204]
[1769188395359,1.28796812,2970.1,2968.8,0.00306204]
[1769188395658,1.28796812,2970.0,2968.8,0.00306204]
[1769188395859,0.35719467,2969.9,2968.8,0.00306204]
[1769188396053,0.1457179,2970.3,2968.8,0.00306204]
[1769188396254,1.28753856,2970.2,2968.8,0.00306204]
[1769188396451,1.28753856,2970.1,2968.8,0.00306204]
[1769188396659,1.28753856,2970.0,2968.8,0.00306204]
[1769188396858,0.35695189,2969.9,2968.8,0.00306204]
[1769188397053,0.1457179,2970.3,2968.8,0.00306204]
[1769188397253,1.43289443,2970.2,2968.8,0.00306204]
[1769188397455,1.43289443,2970.1,2968.8,0.00306204]
[1769188397660,1.28717653,2970.0,2968.8,0.00306204]
[1769188397860,0.356952,2969.9,2968.8,0.00306204]
[1769188398063,0.35689502,2969.8,2968.0,0.30793842]
[1769188398266,1.2869858,2969.7,2968.0,0.13927842]
[1769188398461,1.2869858,2969.6,2968.0,0.13927842]
[1769188398760,1.2869858,2969.5,2968.0,0.13927842]
[1769188399060,0.35689502,2969.4,2967.9,0.16867]
[1769188399266,0.35658843,2969.3,2968.0,0.00276176]
[1769188399563,0.1457179,2969.5,2968.0,0.00276176]
[1769188399762,1.28571556,2969.4,2968.0,0.00276176]
[1769188399964,0.35660232,2969.3,2968.0,0.00276176]
[1769188400164,0.1457179,2969.5,2968.0,0.00276176]
[1769188400371,1.28505951,2969.4,2968.0,0.00276176]
[1769188400659,0.35641101,2969.3,2968.0,0.00276176]
[1769188400859,0.1457179,2969.5,2968.0,0.00276176]
[1769188401058,1.28505394,2969.4,2968.0,0.00276176]
[1769188401259,0.35640568,2969.3,2968.0,0.00276176]
[1769188401459,0.1457179,2969.5,2968.0,0.00276176]
[1769188401660,1.28446188,2969.4,2968.0,0.00276176]
[1769188401957,0.1457179,2969.5,2968.0,0.00276176]
[1769188402158,0.35623239,2969.4,2968.0,0.00276176]
[1769188402358,0.1457179,2969.5,2968.0,0.00276176]
[1769188402558,0.35607862,2969.4,2968.0,0.00276176]
[1769188402861,0.1457179,2969.5,2968.0,0.00276176]
[1769188403060,0.35607862,2969.4,2968.0,0.00276176]
[1769188403265,0.1457179,2969.5,2968.0,0.00276176]
[1769188403566,0.35595189,2969.4,2968.0,0.00276176]
[1769188403766,0.1457179,2969.5,2968.0,0.00276176]
[1769188405066,0.3143079,2969.5,2968.0,0.00276176]
[1769188405363,0.1457179,2969.4,2968.0,0.00276176]
[1769188405759,0.1457179,2969.2,2968.0,0.00276176]
[1769188405956,0.1490703,2969.2,2968.0,0.00276176]
[1769188406363,0.92693135,2969.1,2968.0,0.00276176]
[1769188406563,0.3176703,2969.2,2968.0,0.00276176]
[1769188406765,1.24125971,2969.1,2968.0,0.00276176]
[1769188406963,0.3143279,2969.1,2968.0,0.00276176]
[1769188407363,0.0033524,2969.2,2968.0,0.00276176]
[1769188411757,0.0033524,2969.2,2968.0,0.31071018]
[1769188411963,0.0033524,2969.2,2968.1,0.1410307]
[1769188412572,0.0033524,2969.2,2968.1,0.3096907]
[1769188413068,0.0033524,2969.2,2968.2,0.1410307]
[1769188414364,0.0033524,2969.2,2968.1,0.16866]
[1769188416264,0.0033524,2969.2,2968.0,0.00276176]
[1769188416567,0.14687682,2969.2,2968.0,0.00276176]
[1769188421274,0.92912932,2969.1,2968.0,0.00276176]
[1769188421473,0.14687682,2969.2,2968.0,0.00276176]
[1769188421665,0.92912942,2969.1,2968.0,0.00276176]
[1769188421866,0.14687682,2969.2,2968.0,0.00276176]
[1769188422066,0.92912952,2969.1,2968.0,0.00276176]
[1769188422268,0.14687682,2969.2,2968.0,0.00276176]
[1769188422571,0.92960969,2969.1,2968.0,0.00276176]
[1769188422773,0.14687682,2969.2,2968.0,0.00276176]
[1769188422964,0.92960949,2969.1,2968.0,0.00276176]
[1769188423164,0.14687682,2969.2,2968.0,0.00276176]
[1769188423370,0.92982388,2969.1,2968.0,0.00276176]
[1769188423566,0.14687682,2969.2,2968.0,0.00276176]
[1769188423769,0.92982394,2969.1,2968.0,0.00276176]
[1769188423966,0.14687682,2969.2,2968.0,0.00276176]
[1769188424170,1.28692321,2969.1,2968.0,0.00276176]
[1769188424371,0.92982394,2969.0,2968.0,0.00276176]
[1769188424675,0.14687682,2969.2,2968.0,0.00276176]
[1769188424873,1.28719507,2969.1,2968.0,0.00276176]
[1769188425074,0.93009364,2969.0,2968.0,0.00276176]
[1769188425275,0.93040155,2968.9,2968.0,0.00276176]
[1769188425571,0.14687682,2969.2,2968.0,0.00276176]
[1769188425772,1.28757925,2969.1,2968.0,0.00276176]
[1769188425965,0.93037648,2969.0,2968.0,0.00276176]
[1769188426162,0.14687682,2969.2,2968.0,0.00276176]
[1769188426364,1.28800146,2969.1,2968.0,0.00276176]
[1769188426565,0.93078775,2969.0,2968.0,0.00276176]
[1769188426776,0.14687682,2969.2,2968.0,0.00276176]
[1769188427074,1.28813901,2969.1,2968.0,0.00276176]
[1769188427372,1.28833222,2969.0,2968.0,0.00276176]
[1769188427570,0.93078804,2968.9,2968.0,0.00276176]
[1769188427772,0.0033524,2969.2,2968.0,0.00276176]
[1769188427975,0.0033524,2969.2,2968.2,0.1410307]
[1769188429875,0.0033524,2969.2,2968.2,0.3096907]
[1769188430177,0.0033524,2969.2,2968.3,0.1410307]
[1769188430373,0.0033524,2969.2,2968.3,0.3096807]
[1769188430676,1.47653021,2970.4,2968.7,0.3096607]
[1769188430677,0.31206442,2970.4,2968.7,0.3096607]
[1769188430872,1.288493,2970.3,2968.7,0.3096607]
[1769188431174,1.288493,2970.2,2968.9,0.1410307]
[1769188431476,0.00391436,2970.2,2969.0,0.1410307]
[1769188433977,0.35684617,2970.1,2968.4,0.16864]
[1769188434177,0.00391436,2970.2,2968.5,0.1410307]
[1769188434476,0.35675448,2970.1,2968.5,0.1410307]
[1769188434670,0.00391436,2970.2,2968.5,0.3096707]
[1769188434972,0.14352442,2970.0,2968.5,0.16864]
[1769188435178,1.28624087,2969.9,2968.5,0.16864]
[1769188435369,0.35675462,2969.8,2968.5,0.3096707]
[1769188435566,1.48044457,2970.2,2968.5,0.3096707]
[1769188435878,0.00391436,2970.2,2968.8,0.1410307]
[1769188436583,0.00391436,2970.2,2968.8,0.3096507]
[1769188436772,0.00391436,2970.2,2968.9,0.1410307]
[1769188439478,0.00391436,2970.2,2969.0,0.1410307]
[1769188446288,1.07708379,2970.1,2968.5,0.31599552]
[1769188446584,0.92744862,2970.0,2968.5,0.31599552]
[1769188447082,0.92744862,2970.0,2968.6,0.14390722]
[1769188447483,0.92744862,2969.9,2968.7,0.14390722]
[1769188447685,0.17246436,2970.2,2968.7,0.14390722]
[1769188447878,0.92766217,2970.1,2968.7,0.14390722]
[1769188448179,0.92766217,2970.0,2968.7,0.14390722]
[1769188448488,0.17246436,2970.2,2969.0,0.14390722]
[1769188448489,0.00391436,2970.2,2969.0,0.14390722]
[1769188448680,0.92767813,2970.1,2969.0,0.14390722]
[1769188448879,0.00391436,2970.2,2969.0,0.14390722]
[1769188449088,0.92768789,2970.1,2969.0,0.14390722]
[1769188449382,0.00391436,2970.2,2969.1,0.14390722]
[1769188449785,0.00391436,2970.2,2969.0,0.16861]
[1769188449985,0.92699199,2970.1,2969.0,0.16861]
[1769188450185,0.00391436,2970.2,2969.0,0.16861]
[1769188450380,0.9270878,2970.1,2969.0,0.16861]
[1769188450583,0.9271279,2970.0,2968.7,0.14390722]
[1769188450886,0.9271279,2969.9,2968.7,0.31253722]
[1769188451087,0.00391436,2970.2,2968.8,0.14390722]
[1769188451288,0.92717128,2970.1,2968.8,0.14390722]
[1769188451588,0.92717128,2970.0,2968.8,0.14390722]
[1769188451786,0.00391436,2970.2,2968.8,0.14390722]
[1769188451982,0.9273195,2970.1,2968.8,0.14390722]
[1769188452187,0.9273195,2970.0,2968.8,0.14390722]
[1769188452390,0.00391436,2970.2,2968.8,0.14390722]
[1769188452584,0.92754891,2970.1,2968.8,0.14390722]
[1769188452783,0.92754891,2970.0,2968.8,0.14390722]
[1769188452982,0.00391436,2970.2,2968.8,0.14390722]
[1769188453183,0.92754849,2970.1,2968.8,0.14390722]
[1769188453384,0.00391436,2970.2,2968.8,0.14390722]
[1769188453687,0.00391436,2970.2,2968.8,0.31252722]
[1769188453885,0.00391436,2970.2,2968.9,0.14390722]
[1769188456087,1.28543177,2970.1,2968.9,0.14390722]
[1769188456393,1.28562075,2970.0,2968.5,0.14390722]
[1769188456691,0.00391436,2970.2,2968.5,0.14390722]
[1769188456888,1.28615635,2970.1,2968.5,0.14390722]
[1769188457191,1.28615635,2970.0,2968.5,0.14390722]
[1769188457395,1.28615635,2969.9,2968.5,0.14390722]
[1769188457598,0.92910506,2969.8,2968.5,0.14390722]
[1769188457787,0.16855,2970.1,2968.5,0.14390722]
[1769188457987,1.28708232,2970.0,2968.6,0.14390722]
[1769188458286,1.28708232,2969.9,2968.6,0.14390722]
[1769188458486,0.92976775,2969.8,2968.6,0.14390722]
[1769188458692,0.16855,2970.1,2968.6,0.14390722]
[1769188458891,1.28770294,2970.0,2968.6,0.14390722]
[1769188459087,1.28770294,2969.9,2968.6,0.14390722]
[1769188459287,1.28786317,2969.8,2968.6,0.14390722]
[1769188459489,0.16855,2970.1,2968.6,0.14390722]
[1769188459786,1.28824421,2970.0,2968.6,0.14390722]
[1769188459988,1.28824421,2969.9,2968.6,0.14390722]
[1769188460190,1.28824421,2969.8,2968.6,0.14390722]
[1769188460388,0.16855,2970.1,2968.6,0.14390722]
[1769188460588,1.288583,2970.0,2968.6,0.14390722]
[1769188460790,1.28858302,2969.9,2968.6,0.14390722]
[1769188460985,0.93083519,2969.8,2968.6,0.14390722]
[1769188461191,0.16855,2970.1,2968.6,0.14390722]
[1769188461386,1.28847386,2970.0,2968.6,0.14390722]
[1769188461693,1.28847403,2969.9,2968.6,0.14390722]
[1769188461895,0.93075675,2969.8,2968.6,0.14390722]
[1769188462091,0.16855,2970.1,2968.6,0.14390722]
[1769188462286,1.28848164,2970.0,2968.6,0.14390722]
[1769188462493,1.28848164,2969.9,2968.6,0.14390722]
[1769188462696,1.28848164,2969.8,2968.6,0.14390722]
[1769188462992,0.16855,2970.1,2968.6,0.14390722]
[1769188463194,1.28848933,2970.0,2968.6,0.14390722]
[1769188463391,1.28848933,2969.9,2968.5,0.16864]
[1769188463594,1.28848933,2969.8,2968.5,0.16864]
[1769188463800,0.14948672,2970.0,2968.5,0.16864]
[1769188464091,1.28848269,2969.9,2968.5,0.16864]
[1769188464296,0.93076857,2969.8,2968.5,0.16864]
[1769188464497,0.16855,2970.1,2968.6,0.14390722]
[1769188464798,1.28840776,2970.0,2968.6,0.14390722]
[1769188464996,1.28840776,2969.9,2968.6,0.14390722]
[1769188465198,0.16855,2970.1,2968.6,0.14390722]
[1769188465502,1.28851098,2970.0,2968.6,0.14390722]
[1769188465691,1.28851098,2969.9,2968.6,0.14390722]
[1769188465891,0.16855,2970.1,2968.6,0.14390722]
[1769188466091,1.28850988,2970.0,2968.6,0.14390722]
[1769188466295,1.28850988,2969.9,2968.6,0.14390722]
[1769188466592,0.16855,2970.1,2968.6,0.14390722]
[1769188466792,1.28848204,2970.0,2968.6,0.14390722]
[1769188466994,1.28848204,2969.9,2968.6,0.14390722]
[1769188467193,0.16855,2970.1,2968.6,0.14390722]
[1769188467393,1.28845164,2970.0,2968.6,0.14390722]
[1769188467601,1.28845164,2969.9,2968.6,0.14390722]
[1769188467804,0.16855,2970.1,2968.6,0.14390722]
[1769188467997,1.28844899,2970.0,2968.6,0.14390722]
[1769188468297,1.28844899,2969.9,2968.6,0.14390722]
[1769188468499,0.16855,2970.1,2968.6,0.14390722]
[1769188468698,1.28843011,2970.0,2968.6,0.14390722]
[1769188468900,1.28843011,2969.9,2968.6,0.14390722]
[1769188469092,0.16855,2970.1,2968.6,0.14390722]
[1769188469292,1.28843011,2970.0,2968.6,0.14390722]
[1769188469493,0.93072904,2969.9,2968.7,0.14390722]
[1769188469689,0.00391436,2970.2,2968.8,0.14390722]
[1769188469901,1.28836822,2970.1,2968.9,0.14390722]
[1769188470103,0.00391436,2970.2,2968.9,0.14390722]
[1769188470594,0.00391436,2970.2,2969.2,0.14390722]
[1769188470793,10.48048672,2971.3,2969.6,0.14390722]
[1769188471002,1.28791555,2971.2,2969.6,0.14390722]
[1769188471198,1.28791555,2971.1,2969.6,0.14390722]
[1769188471394,1.28791555,2971.0,2969.6,0.14390722]
[1769188471595,1.873,2971.5,2969.6,0.14390722]
[1769188471891,1.28707601,2971.4,2969.6,0.14390722]
[1769188472095,1.28707601,2971.3,2969.6,0.14390722]
[1769188472294,1.28707601,2971.2,2969.6,0.14390722]
[1769188472494,0.92977186,2971.1,2969.6,0.14390722]
[1769188472690,2.19400203,2971.5,2969.6,0.14390722]
[1769188472894,1.28633617,2971.4,2969.6,0.14390722]
[1769188473094,1.28633617,2971.3,2969.6,0.14390722]
[1769188473300,1.28633617,2971.2,2969.6,0.14390722]
[1769188473494,0.92924731,2971.1,2969.6,0.14390722]
[1769188473692,2.19400203,2971.5,2969.6,0.14390722]
[1769188473903,1.28574904,2971.4,2969.6,0.14390722]
[1769188474104,1.28574904,2971.3,2969.6,0.14390722]
[1769188474296,1.28574904,2971.2,2969.6,0.14390722]
[1769188474496,1.28574904,2971.1,2969.6,0.14390722]
[1769188474698,0.35691932,2971.0,2969.6,0.14390722]
[1769188474899,0.50538446,2970.9,2969.1,0.14567054]
[1769188475102,1.4339463,2970.8,2969.1,0.14567054]
[1769188475302,0.35680008,2970.7,2969.1,0.14567054]
[1769188476701,0.92848378,2970.6,2969.1,0.14567054]
[1769188476906,1.28529383,2970.5,2969.1,0.14567054]
[1769188477106,0.35680008,2970.4,2969.1,0.14567054]
[1769188477305,0.14859485,2970.9,2969.1,0.14567054]
[1769188477506,1.28524873,2970.8,2969.1,0.14567054]
[1769188477696,1.28524873,2970.7,2969.1,0.14567054]
[1769188477903,0.35681486,2970.6,2969.1,0.14567054]
[1769188478106,0.14859485,2970.9,2969.1,0.14567054]
[1769188478401,1.28516755,2970.8,2969.1,0.14567054]
[1769188478605,1.28516755,2970.7,2969.2,0.14567054]
[1769188478804,0.35676704,2970.6,2969.2,0.14567054]
[1769188479004,0.35676923,2970.5,2969.2,0.14567054]
[1769188479309,0.14859485,2970.9,2969.2,0.14567054]
[1769188479513,1.28508911,2970.8,2969.2,0.14567054]
[1769188479805,1.43368396,2970.7,2969.2,0.14567054]
[1769188480007,0.50535229,2970.6,2969.1,0.1686]
[1769188480212,0.35675744,2970.5,2969.1,0.1686]
[1769188481604,0.35675744,2970.5,2968.7,0.14567054]
[1769188482108,0.50535229,2970.5,2968.7,0.14567054]
[1769188482401,1.28617028,2970.4,2968.7,0.14567054]
[1769188482606,0.35675744,2970.3,2968.7,0.14567054]
[1769188482908,0.35678257,2970.2,2968.7,0.14567054]
[1769188483110,0.14859485,2970.4,2968.7,0.14567054]
[1769188483313,0.35678498,2970.3,2968.7,0.14567054]
[1769188483505,0.35678498,2970.2,2968.7,0.14567054]
[1769188483701,0.14859485,2970.4,2968.7,0.14567054]
[1769188485209,0.16852,2970.7,2969.0,0.14567054]
[1769188485412,1.28617196,2970.6,2969.1,0.14567054]
[1769188485614,0.92939922,2970.5,2969.1,0.14567054]
[1769188485815,0.14859485,2970.9,2969.1,0.14567054]
[1769188486009,1.28613919,2970.8,2969.1,0.14567054]
[1769188486217,1.28613919,2970.7,2969.1,0.14567054]
[1769188486514,1.28613919,2970.6,2969.1,0.14567054]
[1769188486818,0.92937563,2970.5,2969.1,0.14567054]
[1769188487117,0.14859485,2970.8,2969.1,0.14567054]
[1769188487316,1.28620893,2970.7,2969.1,0.14567054]
[1769188487516,1.28620893,2970.6,2969.1,0.14567054]
[1769188487816,0.92942609,2970.5,2969.1,0.14567054]
[1769188488014,0.14859485,2970.8,2969.1,0.14567054]
[1769188488208,1.28632396,2970.7,2969.1,0.14567054]
[1769188488414,1.28632396,2970.6,2969.1,0.14567054]
[1769188488616,0.92950922,2970.5,2969.1,0.14567054]
[1769188488817,0.14859485,2970.8,2969.1,0.14567054]
[1769188489122,1.28642028,2970.7,2969.1,0.14567054]
[1769188489322,1.28642028,2970.6,2969.1,0.14567054]
[1769188489522,0.14859485,2970.4,2969.0,0.16861]
[1769188489923,0.92969623,2970.3,2969.0,0.16861]